[Event "GER-ch Youth-U14 2022"]
[Site "Willingen"]
[Date "2022.06.08"]
[Round "6.5"]
[White "Honisch, Alexander"]
[Black "Udelnov, Valentin"]
[Result "1-0"]
[ECO "C60"]
[WhiteElo "1878"]
[BlackElo "1901"]
[Annotator "TA"]
[PlyCount "79"]
[EventDate "2022.06.05"]
[EventType "swiss"]
[EventRounds "9"]
[EventCountry "GER"]
[SourceTitle "playchess.com"]
[Source "ChessBase"]
[SourceQuality "1"]
[TimeControl "40/4500+30:900+30"]

{[%evp 12,79,53,26,36,7,10,-86,20,2,44,30,79,30,75,47,66,43,64,44,47,41,60,60,77,58,124,115,116,97,108,99,105,66,229,229,233,231,235,218,489,463,576,589,566,423,502,498,502,503,491,483,494,504,478,398,452,447,502,463,509,491,779,648,1012,996,953,945,29986,29987]} 1. e4 {[%emt 0:00:00]} e5 {[%emt 0:00:00]} 2. Nf3 {[%emt 0:00:00]} Nc6 {[%emt 0:00:00]} 3. Bb5 {[%emt 0:00:00]} g6 {[%emt 0:00:00]} 4. O-O {[%emt 0:00:00]} Bg7 {[%emt 0:00:00]} 5. c3 {[%emt 0:00:00]} d6 {[%emt 0:00:00]} 6. d4 {[%emt 0:00:00]} Bd7 {[%emt 0:00:00]} 7. Be3 {[%emt 0:02:00]} Nf6 {[%emt 0:00:00] C60: Ruy Lopez: Unusual Black 3rd moves and 3...g6.} 8. Nbd2 {[%emt 0:06:34]} O-O {[%emt 0:00:00][%cal Oc6d4]} 9. h3 {[%emt 0:04:58] [#]} (9. Bc4 $11) 9... Re8 $146 {[%emt 0:00:08]} (9... Nxd4 $1 $17 10. Bxd7 (10. cxd4 Bxb5) 10... Nxf3+ 11. Qxf3 Qxd7) ({Predecessor:} 9... Nxd4 10. Bc4 Ne6 11. Re1 Nh5 12. Nf1 Kh8 13. Kh2 Qe8 14. Bd5 Bc6 15. c4 f5 16. b4 fxe4 17. N3d2 Nf6 18. Qb3 Bxd5 19. cxd5 Nd4 {0-1 (19) Kleinman,M (2289)-Javakhadze,Z (2470) Charlotte 2017}) 10. Bd3 {[%emt 0:09:29]} Nh5 {[%emt 0:04:05]} 11. Re1 {[%emt 0:07:20]} (11. Qb3 {keeps more tension.} b6 12. Rfd1 a5 13. a4) 11... Kh8 {[%emt 0:05:57]} (11... a5 $11 {was preferrable.}) 12. Qc2 {[%emt 0:02:36]} (12. Bc4 $16) 12... Qc8 {[%emt 0:01:21]} 13. dxe5 {[%emt 0:09:40]} dxe5 {[%emt 0:01:28]} 14. Nc4 {[%emt 0:08:53]} f5 {[%emt 0:04:23]} 15. Rad1 {[%emt 0:02:13] White is more active.} f4 {[%emt 0:02:43]} 16. Bc1 {[%emt 0:01:25]} Bf6 {[%emt 0:00:54]} 17. Be2 {[%emt 0:02:01]} Ng7 {[%emt 0:09:31]} 18. b4 {[%emt 0:02:14]} b5 {[%emt 0:01:47]} (18... Nd8 $14) 19. Nb2 $16 {[%emt 0:01:50]} Rb8 {[%emt 0:01:10]} 20. a4 {[%emt 0:00:38]} a6 {[%emt 0:00:49]} 21. axb5 {[%emt 0:03:54]} axb5 {[%emt 0:00:28]} 22. Rd5 {[%emt 0:00:12] Hoping for Red1.} Ne7 $2 {[%emt 0:14:55] Black cannot hold the game after this.} (22... Nd8 $1 $14) 23. Rxe5 $18 {[%emt 0:02:32]} Bxe5 {[%emt 0:01:35]} 24. Nxe5 {[%emt 0:00:02]} Rf8 {[%emt 0:02:07]} 25. Nbd3 {[%emt 0:00:50]} Ne6 $2 {[%emt 0:08:05]} (25... Nc6 {was worth a try.} 26. Bxf4 Rxf4) 26. Bg4 {[%emt 0:05:10]} Rb6 {[%emt 0:12:44]} 27. Nxd7 {[%emt 0:00:46]} Qxd7 {[%emt 0:00:04] [#]} 28. Nxf4 {[%emt 0:01:08][%mdl 512]} Rxf4 {[%emt 0:02:59]} (28... h5 29. Rd1) 29. Bxf4 {[%emt 0:00:11]} h5 {[%emt 0:00:27]} 30. Be5+ {[%emt 0:03:02]} Kh7 {[%emt 0:00:13]} 31. Be2 {[%emt 0:02:01]} ({But not} 31. Rd1 Qe8 32. Be2 Rb7 $18) 31... Nc6 {[%emt 0:01:08]} 32. Bh2 {[%emt 0:00:41]} Qf7 {[%emt 0:01:55]} 33. e5 {[%emt 0:01:04]} Nf4 {[%emt 0:01:34]} 34. Bf1 {[%emt 0:02:39]} Nd8 {[%emt 0:00:35]} 35. Qe4 {[%emt 0:00:35]} Nde6 {[%emt 0:00:21]} 36. Re3 {[%emt 0:03:02] aiming for Rf3.} ({Not} 36. g3 Ng5 37. Qe3 (37. Qxf4 Nf3+ 38. Kh1 Qxf4 $11) 37... Qd5 $14) 36... Kh6 {[%emt 0:01:22]} (36... Qf5 $142 37. Qxf5 gxf5 38. Bxf4 Nxf4) 37. g3 {[%emt 0:00:49]} g5 {[%emt 0:00:06]} 38. gxf4 {[%emt 0:00:35]} gxf4 {[%emt 0:00:07]} 39. Rf3 {[%emt 0:02:41]} Ng5 {[%emt 0:00:19]} 40. Bxf4 {[%emt 0:01:00] Weighted Error Value: White=0.27 (precise) /Black=0.69} 1-0

[Event "GER-ch Youth-U14 2022"]
[Site "Willingen"]
[Date "2022.06.08"]
[Round "6.6"]
[White "Chinguun Sundui"]
[Black "Kempe, Caius Emilian"]
[Result "1/2-1/2"]
[ECO "C00"]
[WhiteElo "1731"]
[BlackElo "1973"]
[Annotator "TA"]
[PlyCount "87"]
[EventDate "2022.06.05"]
[EventType "swiss"]
[EventRounds "9"]
[EventCountry "GER"]
[SourceTitle "playchess.com"]
[Source "ChessBase"]
[SourceQuality "1"]
[TimeControl "40/4500+30:900+30"]

{[%evp 9,87,-18,0,-2,-2,-55,18,15,20,-15,-22,-24,27,-18,6,-50,-29,-25,-12,-20,0,0,0,0,0,0,0,-12,0,0,4,-11,0,-14,0,0,0,-7,0,0,0,-13,9,5,84,37,117,0,470,337,367,366,420,412,345,381,915,508,509,520,466,189,194,197,190,189,196,0,158,145,135,100,346,30,110,0,349,31,162,91]} 1. e4 {[%emt 0:00:00]} e6 {[%emt 0:00:00]} 2. f4 {[%emt 0:00:00]} d5 {[%emt 0:00:00]} 3. e5 {[%emt 0:00:00]} c5 {[%emt 0:00:00]} 4. Nf3 {[%emt 0:00:00]} Nc6 {[%emt 0:00:00]} 5. c3 {[%emt 0:00:00]} Bd7 {[%emt 0:00:00]} 6. Na3 {[%emt 0:00:00][%cal Bb1a3,Ba3c2,Bc2e3][%mdl 32] C00: French: Unusual White 2nd moves.} f6 {[%emt 0:00:00]} 7. d4 {[%emt 0:00:00]} (7. Be2 $11) 7... Nh6 {[%emt 0:00:26]} ({Better is} 7... cxd4 $15 8. cxd4 fxe5 9. fxe5 (9. Nxe5 Nxe5 10. dxe5 Bc5 $15) 9... Bb4+ 10. Kf2 Nge7) 8. Nc2 $11 {[%emt 0:00:00] The position is equal.} Qb6 {[%emt 0:11:13] [#]} 9. a3 $146 {[%emt 0:00:00]} ({Predecessor:} 9. Bd3 cxd4 10. cxd4 Nb4 11. Nxb4 Bxb4+ 12. Bd2 Bxd2+ 13. Qxd2 Bb5 14. O-O Bxd3 15. Qxd3 {0-1 (41) Lu,J (2068)-Wiebe,I (1997) Chess.com INT 2021}) 9... c4 {[%emt 0:09:33]} 10. Ne3 {[%emt 0:04:16]} Ne7 {[%emt 0:03:03]} (10... O-O-O $142) 11. g4 {[%emt 0:17:45]} f5 {[%emt 0:01:54]} 12. gxf5 {[%emt 0:11:58]} (12. h3 $11) 12... Nhxf5 {[%emt 0:01:49]} 13. Nxf5 {[%emt 0:02:16]} Nxf5 {[%emt 0:00:12]} 14. Bh3 {[%emt 0:00:16]} Ne7 {[%emt 0:02:02]} 15. Ng5 {[%emt 0:05:14]} h6 {[%emt 0:05:28]} 16. Nf3 {[%emt 0:06:36]} O-O-O {[%emt 0:04:01]} 17. Qc2 {[%emt 0:00:20]} g6 {[%emt 0:01:47]} 18. Bd2 {[%emt 0:00:58]} Be8 {[%emt 0:02:06]} 19. O-O-O {[%emt 0:01:35]} Bf7 {[%emt 0:07:07]} 20. Bg4 {[%emt 0:05:41]} Rg8 {[%emt 0:03:08]} 21. h4 {[%emt 0:05:07]} h5 {[%emt 0:00:39]} 22. Bh3 {[%emt 0:00:08]} Rg7 {[%emt 0:02:47]} 23. Ng5 {[%emt 0:03:06]} Bg8 {[%emt 0:02:43]} 24. Rhg1 {[%emt 0:02:50]} Qa6 {[%emt 0:05:01]} 25. Kb1 {[%emt 0:04:43]} Kd7 {[%emt 0:00:15]} 26. Ka2 {[%emt 0:02:45]} Nc6 {[%emt 0:04:03]} (26... Nf5 $11) 27. Nf3 {[%emt 0:04:34] White is more active.} (27. Rg2 $16) 27... Bf7 {[%emt 0:01:51]} (27... Ne7 $1 $14) 28. Ng5 {[%emt 0:00:43]} (28. Rg2 $1 $16) 28... Ke7 $2 {[%emt 0:00:53][%mdl 8192]} (28... Bg8 $11) 29. Rg2 {[%emt 0:01:40]} b5 {[%emt 0:01:25]} 30. Rdg1 {[%emt 0:00:26]} b4 {[%emt 0:00:06]} 31. cxb4 {[%emt 0:00:30]} Nxd4 {[%emt 0:00:12]} 32. Qd1 {[%emt 0:01:36] Really sharp!} ({Weaker is} 32. Qc3 Nf5 $16) 32... Be8 $2 {[%emt 0:02:03]} (32... Bg8 33. Nf3 Nxf3 34. Qxf3 c3) 33. Bc3 {[%emt 0:01:21]} Nf5 {[%emt 0:00:18]} 34. Bxf5 {[%emt 0:00:37]} gxf5 {[%emt 0:00:01]} 35. Bd4 {[%emt 0:01:12]} (35. b5 $142 Qxb5 36. Bb4+ Kd7 37. Bxf8 Qb3+ 38. Qxb3 cxb3+ 39. Kxb3 Rb8+ 40. Ka2) 35... Rc8 $18 {[%emt 0:04:27]} 36. Bc5+ {[%emt 0:00:39]} Rxc5 {[%emt 0:00:02]} 37. bxc5 {[%emt 0:00:09]} Qb5 {[%emt 0:01:20]} 38. Nf3 $2 {[%emt 0:01:26]} (38. b4 $18) 38... Rxg2 $2 {[%emt 0:00:05]} (38... Rg4 $11) 39. Rxg2 $16 {[%emt 0:00:00] Nd4 is the strong threat.} Qxc5 {[%emt 0:00:15]} 40. Qd4 {[%emt 0:01:11]} Kd8 $2 {[%emt 0:01:52]} (40... Qxd4 $16 {was worth a try.} 41. Nxd4 Kf7) 41. Ng5 $2 {[%emt 0:00:00]} Bd7 $11 {[%emt 0:00:00]} 42. Nf3 {[%emt 0:00:00]} (42. Qd1 $1 $16 {[%cal Rd1h5]}) 42... Ba4 $2 {[%emt 0:00:00][%mdl 8192]} (42... Be8 $1 $11 {and Black stays safe.}) 43. Rd2 $2 {[%emt 0:01:54]} (43. Rg8 $18 {White threatens Qxc5 and mate.} Be8 44. Ng5 $1) 43... Qb5 {[%emt 0:00:00] [#]} (43... Ke8 $14) 44. Qc3 {[%emt 0:01:54] Weighted Error Value: White=0.68/Black=0.76} ({Avoid the trap} 44. Qxa7 $2 c3 45. Nd4 (45. Qa8+ $2 Ke7 $19) 45... Qc4+ 46. b3 Bxb3+ 47. Nxb3 cxd2 48. Qa5+ Ke7 49. Qxd2 Bh6 $19) (44. Ng5 $1 $18 {[%cal Rg5e6]} Qd7 45. Qg1) 1/2-1/2

[Event "GER-ch Youth-U14 2022"]
[Site "Willingen"]
[Date "2022.06.08"]
[Round "6.7"]
[White "Wunderlich, Elias"]
[Black "Haubold, Sebastian Marcel"]
[Result "1/2-1/2"]
[ECO "C88"]
[WhiteElo "1619"]
[BlackElo "1869"]
[Annotator "NA RC COMBH"]
[PlyCount "108"]
[EventDate "2022.06.05"]
[EventType "swiss"]
[EventRounds "9"]
[EventCountry "GER"]
[SourceTitle "playchess.com"]
[Source "ChessBase"]
[SourceQuality "1"]
[TimeControl "40/4500+30:900+30"]

1. e4 {[%emt 0:00:00]} e5 {[%emt 0:00:00]} 2. Nf3 {[%emt 0:00:00]} Nc6 {[%emt 0:00:00]} 3. Bb5 {[%emt 0:00:00]} a6 {[%emt 0:00:00]} 4. Ba4 {[%emt 0:00:00]} Nf6 {[%emt 0:00:00]} 5. O-O {[%emt 0:00:00]} Be7 {[%emt 0:00:00]} 6. Re1 {[%emt 0:00:00]} b5 {[%emt 0:00:00]} 7. Bb3 {[%emt 0:00:00]} O-O {[%emt 0:00:00]} 8. a4 {[%emt 0:00:00]} d5 {[%emt 0:00:00]} 9. exd5 {[%emt 0:00:00]} Na5 {[%emt 0:00:00]} 10. Nxe5 {[%emt 0:00:00]} Bb7 {[%emt 0:08:52]} 11. Nc6 {[%emt 0:03:14]} Nxc6 {[%emt 0:04:35]} 12. dxc6 {[%emt 0:00:09]} Bxc6 {[%emt 0:00:13]} 13. axb5 {[%emt 0:04:10]} axb5 {[%emt 0:01:49]} 14. Rxa8 {[%emt 0:00:04]} Bxa8 {[%emt 0:00:16]} 15. Qe2 {[%emt 0:01:26]} Bd6 {[%emt 0:03:53]} 16. d4 {[%emt 0:03:25]} Qd7 {[%emt 0:18:26]} 17. f3 {[%emt 0:03:17]} Qf5 {[%emt 0:01:45]} 18. Nd2 {[%emt 0:05:10]} Qf4 {[%emt 0:01:05]} 19. Nf1 {[%emt 0:02:45]} Qxd4+ {[%emt 0:04:18]} 20. Be3 {[%emt 0:00:34]} Qe5 {[%emt 0:02:46]} 21. Qd3 {[%emt 0:01:23]} Qh5 {[%emt 0:04:26]} 22. c3 {[%emt 0:08:36]} Nd7 {[%emt 0:04:05]} 23. Ng3 {[%emt 0:05:20]} Qh4 {[%emt 0:02:12]} 24. Qxb5 {[%emt 0:02:15]} Ne5 {[%emt 0:08:43]} 25. Bf2 {[%emt 0:21:27]} Bc6 {[%emt 0:01:52]} 26. Qe2 {[%emt 0:00:50]} Rb8 {[%emt 0:02:08]} 27. Bc2 {[%emt 0:07:05]} Re8 {[%emt 0:02:03]} 28. Qd1 {[%emt 0:01:37]} Re6 {[%emt 0:02:01]} 29. Ne4 {[%emt 0:03:23]} Qh5 {[%emt 0:05:51]} 30. Nxd6 {[%emt 0:04:54]} Bxf3 {[%emt 0:03:24]} 31. Rxe5 {[%emt 0:03:23]} Bxd1 {[%emt 0:02:13]} 32. Rxh5 {[%emt 0:00:08]} Bxh5 {[%emt 0:00:05]} 33. Nc4 {[%emt 0:01:30]} Bg6 {[%emt 0:00:32]} 34. Bd1 {[%emt 0:01:41]} Bd3 {[%emt 0:00:48]} 35. Ne3 {[%emt 0:00:09]} Ra6 {[%emt 0:00:53]} 36. Bg3 {[%emt 0:02:37]} c5 {[%emt 0:00:32]} 37. b4 {[%emt 0:00:48]} cxb4 {[%emt 0:01:19]} 38. cxb4 {[%emt 0:00:05]} Ra2 {[%emt 0:00:21]} 39. Bd6 {[%emt 0:00:49]} h6 {[%emt 0:01:30]} 40. h3 {[%emt 0:01:03]} Kh7 {[%emt 0:00:39]} 41. Kh2 {[%emt 0:15:48]} f5 {[%emt 0:15:42]} 42. h4 {[%emt 0:00:00]} g5 {[%emt 0:00:00]} 43. hxg5 {[%emt 0:00:00]} hxg5 {[%emt 0:00:00]} 44. Bf3 {[%emt 0:00:00]} Kg6 {[%emt 0:00:00]} 45. Bd5 {[%emt 0:00:00]} Rd2 {[%emt 0:00:00]} 46. Bc5 {[%emt 0:00:00]} f4 {[%emt 0:00:00]} 47. Ng4 {[%emt 0:00:00]} Be2 {[%emt 0:00:00]} 48. Be4+ {[%emt 0:00:00]} Kg7 {[%emt 0:00:00]} 49. Kh3 {[%emt 0:00:00]} Rd8 {[%emt 0:00:00]} 50. g3 {[%emt 0:00:00]} Rh8+ {[%emt 0:00:00]} 51. Kg2 {[%emt 0:00:00]} Bxg4 {[%emt 0:00:00]} 52. Bd4+ {[%emt 0:00:00]} Kg8 {[%emt 0:00:00]} 53. Bxh8 {[%emt 0:00:00]} Kxh8 {[%emt 0:00:00]} 54. gxf4 {[%emt 0:00:00]} gxf4 {[%emt 0:00:00]} 1/2-1/2

[Event "GER-ch Youth-U14 2022"]
[Site "Willingen"]
[Date "2022.06.08"]
[Round "6.8"]
[White "Campora, Daniel H."]
[Black "Fruth, David"]
[Result "1-0"]
[ECO "A57"]
[WhiteElo "2397"]
[BlackElo "1648"]
[Annotator "TA"]
[PlyCount "81"]
[EventDate "2022.06.05"]
[EventType "swiss"]
[EventRounds "9"]
[EventCountry "GER"]
[SourceTitle "playchess.com"]
[Source "ChessBase"]
[SourceQuality "1"]
[TimeControl "40/4500+30:900+30"]

{[%evp 9,81,17,25,0,26,18,24,25,24,25,25,-18,-5,-14,16,0,18,-3,0,-22,-11,-14,-10,-18,-18,-13,-8,-20,0,0,0,-4,26,26,21,0,7,0,2,-2,0,-6,26,20,12,21,420,420,465,447,588,535,568,548,685,695,687,635,594,514,667,552,687,606,700,510,743,713,893,885,4770,3935,1287,773]} 1. d4 {[%emt 0:00:00]} Nf6 {[%emt 0:00:00]} 2. c4 {[%emt 0:00:00]} c5 {[%emt 0:00:00]} 3. d5 {[%emt 0:00:00]} b5 {[%emt 0:00:00]} 4. f3 bxc4 {[%emt 0:00:00]} 5. e4 {[%emt 0:00:00]} d6 {[%emt 0:00:00]} 6. Ne2 {[%emt 0:00:00] A57: Benko/Volga Gambit.} g6 {[%emt 0:00:00]} 7. Nec3 {[%emt 0:00:00]} Bg7 {[%emt 0:00:00]} 8. Na3 {[%emt 0:00:00] White has an edge.} O-O {[%emt 0:00:00]} 9. Nxc4 {[%emt 0:00:00]} Nbd7 {[%emt 0:00:00][%cal Bb8d7,Bd7b6,Bb6a4,Ba4c3][%mdl 32] [#]} 10. Be3 $146 {[%emt 0:00:00]} ({Predecessor:} 10. Be2 Nb6 11. O-O Nxc4 12. Bxc4 Nd7 13. a4 Ne5 14. Be2 Rb8 15. f4 Nd7 16. a5 {1-0 (39) Morozevich,A (2683)-Tregubov,P (2586) Sochi 2016}) 10... Nb6 {[%emt 0:00:00]} 11. Qd2 {[%emt 0:00:00]} Rb8 {[%emt 0:00:26]} 12. Na3 {[%emt 0:12:12]} Re8 {[%emt 0:02:30]} 13. Bb5 {[%emt 0:00:30]} Bd7 {[%emt 0:00:26]} 14. Bxd7 {[%emt 0:01:41]} Qxd7 {[%emt 0:03:13]} 15. O-O {[%emt 0:00:39]} Na4 {[%emt 0:01:15]} 16. Qc2 {[%emt 0:17:47]} Nxc3 {[%emt 0:10:33]} (16... Nxb2 17. Rab1 $16) 17. bxc3 {[%emt 0:03:27]} Qc7 {[%emt 0:08:04]} 18. Qa4 {[%emt 0:08:44]} e6 {[%emt 0:18:15]} 19. dxe6 {[%emt 0:03:39]} Rxe6 {[%emt 0:00:16]} 20. Bf2 {[%emt 0:10:43]} Nd7 {[%emt 0:04:42]} 21. Rab1 {[%emt 0:01:28]} Ree8 {[%emt 0:05:15]} (21... Bxc3 $2 22. Rxb8+ (22. Nb5 Rxb5 23. Qxb5 Nb6 $16) 22... Nxb8 23. Nb5 $18) 22. c4 {[%emt 0:06:42]} Nb6 {[%emt 0:04:22]} 23. Qa6 {[%emt 0:01:48]} Qe7 {[%emt 0:05:20]} 24. Bg3 {[%emt 0:02:30]} h5 {[%emt 0:01:38]} 25. h3 {[%emt 0:01:40]} Bd4+ {[%emt 0:06:23]} 26. Kh1 $1 {[%emt 0:00:14]} Rbd8 {[%emt 0:01:29]} 27. Nb5 {[%emt 0:01:09]} Nxc4 $2 {[%emt 0:00:38][%mdl 8192] Loses the game.} (27... Be5 $1 $11 {and Black has nothing to worry.} 28. Nxa7 Ra8 29. Bxe5 (29. Rxb6 $2 Rxa7 30. Qb5 Bxg3 $19) (29. Qxb6 Bxg3 30. Nc6 Qe6 $15) 29... Rxa7 30. Qxb6 dxe5) 28. Nxd4 $18 {[%emt 0:00:40][%mdl 64] And now Nc6 would win. Discovered Attack} cxd4 {[%emt 0:00:33]} 29. Qxc4 {[%emt 0:00:07] White is clearly winning.} Qg5 {[%emt 0:00:58] [#]} 30. Rb7 $1 {[%emt 0:00:38]} Rf8 {[%emt 0:00:19]} 31. Bf2 {[%emt 0:00:17]} d3 {[%emt 0:01:26]} 32. Qxd3 {[%emt 0:00:51]} d5 {[%emt 0:00:22]} 33. exd5 {[%emt 0:00:42]} Rxd5 {[%emt 0:00:03]} 34. Qe3 {[%emt 0:00:38]} Qd8 {[%emt 0:01:25]} 35. Qxa7 {[%emt 0:01:24] [#] Threatens to win with Bc5.} Qg5 {[%emt 0:02:16]} 36. Qe3 {[%emt 0:00:47]} Qd8 {[%emt 0:01:17]} 37. Qe7 {[%emt 0:01:09]} Qc8 {[%emt 0:00:28]} 38. Rc7 {[%emt 0:01:34]} Qa6 {[%emt 0:00:06]} 39. Rfc1 {[%emt 0:01:21] Black must now prevent R1c6.} Rd2 {[%emt 0:00:46]} 40. Bc5 {[%emt 0:00:12]} Rdd8 {[%emt 0:00:57]} 41. a3 {[%emt 0:22:08] Weighted Error Value: White=0.22 (precise) /Black=0.54} 1-0

[Event "GER-ch Youth-U14 2022"]
[Site "Willingen"]
[Date "2022.06.08"]
[Round "6.9"]
[White "Mader, Fabian"]
[Black "Kocharin, Timur"]
[Result "0-1"]
[ECO "B30"]
[WhiteElo "1652"]
[BlackElo "1867"]
[Annotator "NA RC COMBH"]
[PlyCount "96"]
[EventDate "2022.06.05"]
[EventType "swiss"]
[EventRounds "9"]
[EventCountry "GER"]
[SourceTitle "playchess.com"]
[Source "ChessBase"]
[SourceQuality "1"]
[TimeControl "40/4500+30:900+30"]

1. e4 {[%emt 0:00:00]} c5 {[%emt 0:00:00]} 2. Nf3 {[%emt 0:00:00]} Nc6 {[%emt 0:00:00]} 3. Bb5 {[%emt 0:00:00]} e6 {[%emt 0:00:00]} 4. O-O {[%emt 0:00:00]} Nge7 {[%emt 0:00:00]} 5. c3 {[%emt 0:00:00]} d5 {[%emt 0:00:00]} 6. exd5 {[%emt 0:00:00]} Nxd5 {[%emt 0:00:00]} 7. d4 {[%emt 0:00:00]} cxd4 {[%emt 0:03:40]} 8. Nxd4 {[%emt 0:01:07]} Bd7 {[%emt 0:07:47]} 9. Bxc6 {[%emt 0:10:32]} bxc6 {[%emt 0:03:52]} 10. c4 {[%emt 0:03:25]} Nb6 {[%emt 0:02:37]} 11. Qe2 {[%emt 0:04:27]} Be7 {[%emt 0:05:47]} 12. Rd1 {[%emt 0:00:30]} Rc8 {[%emt 0:06:45]} 13. Nc3 {[%emt 0:11:14]} Qc7 {[%emt 0:02:05]} 14. b3 {[%emt 0:01:24]} O-O {[%emt 0:02:12]} 15. Bb2 {[%emt 0:01:35]} e5 {[%emt 0:01:03]} 16. Nf3 f6 17. h3 {[%emt 0:02:20]} Rfd8 {[%emt 0:06:03]} 18. Rd2 {[%emt 0:14:18]} Be8 {[%emt 0:09:57]} 19. Rad1 {[%emt 0:01:42]} Rd7 {[%emt 0:05:12]} 20. Ne1 {[%emt 0:17:46]} Rcd8 {[%emt 0:06:09]} 21. Nd3 {[%emt 0:04:19]} Bg6 {[%emt 0:05:42]} 22. Ne4 {[%emt 0:01:35]} Nc8 {[%emt 0:06:57]} 23. Ndc5 {[%emt 0:03:30]} Rxd2 {[%emt 0:00:38]} 24. Rxd2 {[%emt 0:00:13]} Rxd2 {[%emt 0:02:29]} 25. Qxd2 {[%emt 0:00:07]} Nb6 {[%emt 0:01:33]} 26. Qe2 {[%emt 0:05:05]} Nd5 {[%emt 0:01:59]} 27. cxd5 {[%emt 0:00:52]} cxd5 {[%emt 0:00:02]} 28. Na6 {[%emt 0:00:11]} Qc8 {[%emt 0:00:36]} 29. Nc3 {[%emt 0:01:13]} d4 {[%emt 0:00:10]} 30. Nd5 {[%emt 0:00:22]} Bf8 {[%emt 0:00:20]} 31. Qc4 {[%emt 0:00:56]} Qxc4 {[%emt 0:00:05]} 32. bxc4 {[%emt 0:00:06]} Bd3 {[%emt 0:00:02]} 33. Ndb4 {[%emt 0:01:47]} Bxc4 {[%emt 0:00:06]} 34. f3 {[%emt 0:00:24]} Bd6 {[%emt 0:00:39]} 35. Kf2 {[%emt 0:00:18]} Kf7 {[%emt 0:00:08]} 36. Bc1 {[%emt 0:01:20]} Ke6 {[%emt 0:00:14]} 37. Bd2 {[%emt 0:00:10]} Kd7 {[%emt 0:00:11]} 38. Ke1 {[%emt 0:01:01]} Kc8 {[%emt 0:00:09]} 39. Kd1 {[%emt 0:00:31]} Kb7 {[%emt 0:00:04]} 40. Kc2 {[%emt 0:00:25]} Bxa6 {[%emt 0:00:05]} 41. Nxa6 {[%emt 0:15:13]} Kxa6 {[%emt 0:19:55]} 42. a4 {[%emt 0:00:27]} Kb6 {[%emt 0:00:08]} 43. Kd3 {[%emt 0:00:00]} Kc5 {[%emt 0:00:00]} 44. Be1 {[%emt 0:00:00]} Kd5 {[%emt 0:00:00]} 45. Bd2 {[%emt 0:00:00]} f5 {[%emt 0:00:00]} 46. Ba5 {[%emt 0:00:00]} e4+ {[%emt 0:00:00]} 47. fxe4+ {[%emt 0:00:00]} fxe4+ {[%emt 0:00:00]} 48. Kc2 {[%emt 0:00:00]} Kc4 {[%emt 0:00:00]} 0-1

[Event "GER-ch Youth-U14 2022"]
[Site "Willingen"]
[Date "2022.06.08"]
[Round "6.10"]
[White "Krüger, Arthur"]
[Black "Sommer, Justus"]
[Result "1/2-1/2"]
[ECO "C47"]
[WhiteElo "1988"]
[BlackElo "1868"]
[Annotator "TA"]
[PlyCount "52"]
[EventDate "2022.06.05"]
[EventType "swiss"]
[EventRounds "9"]
[EventCountry "GER"]
[SourceTitle "playchess.com"]
[Source "ChessBase"]
[SourceQuality "1"]
[TimeControl "40/4500+30:900+30"]

{[%evp 17,52,0,0,0,0,0,0,0,0,0,0,0,20,-5,8,4,19,30,22,5,40,41,69,62,104,0,0,0,0,0,0,0,16,0,0,-2,0]} 1. e4 {[%emt 0:00:00]} e5 {[%emt 0:00:00]} 2. Nf3 {[%emt 0:00:00]} Nc6 {[%emt 0:00:00]} 3. Nc3 {[%emt 0:00:00]} Nf6 {[%emt 0:00:00]} 4. d4 {[%emt 0:00:00]} exd4 {[%emt 0:00:00]} 5. Nxd4 {[%emt 0:00:00]} Bb4 {[%emt 0:00:00]} 6. Nxc6 {[%emt 0:00:00]} bxc6 {[%emt 0:00:00]} 7. Bd3 {[%emt 0:00:00]} O-O {[%emt 0:00:00]} 8. O-O {[%emt 0:00:00]} d5 {[%emt 0:00:00]} 9. exd5 {[%emt 0:00:00]} cxd5 {[%emt 0:00:00]} 10. h3 {[%emt 0:00:00] C47: Scotch Four Knights and Four Knights with 4 g3.} c6 {[%emt 0:00:00]} 11. Qf3 {[%emt 0:00:00]} Re8 {[%emt 0:00:00]} 12. Bf4 {[%emt 0:00:00]} Be6 {[%emt 0:00:00]} 13. a3 {[%emt 0:00:00]} Bd6 {[%emt 0:00:24]} 14. Ne2 {[%emt 0:00:00][%cal Bc3e2,Be2d4,Bd4c6][%mdl 32] [#]} Rb8 $146 {[%emt 0:01:43]} ({Predecessor:} 14... Ne4 15. Bxd6 Qxd6 16. Bxe4 dxe4 17. Qe3 Qe5 18. Qc3 Qg5 19. Rfd1 Bd5 20. Qe3 Qe5 {½-½ (32) Roger,M (2173)-Mannion,S (2365) Cappelle la Grande 2014}) 15. Rab1 {[%emt 0:00:00]} Qc7 {[%emt 0:01:57]} 16. Rfd1 {[%emt 0:00:00]} Nd7 {[%emt 0:02:26]} 17. Bxd6 {[%emt 0:11:31]} Qxd6 {[%emt 0:00:13]} 18. Nd4 {[%emt 0:07:02]} Nc5 {[%emt 0:06:15]} 19. Bf1 {[%emt 0:20:22]} Nd7 {[%emt 0:07:37]} 20. c4 {[%emt 0:08:45][%cal Od4c6]} Nf6 {[%emt 0:08:07]} 21. c5 {[%emt 0:06:25]} ({White should play} 21. b4 $16) 21... Qxc5 $11 {[%emt 0:06:29] The position is equal.} 22. Rbc1 {[%emt 0:00:43]} Qb6 {[%emt 0:00:57]} 23. Nxc6 {[%emt 0:00:21]} Rbc8 {[%emt 0:00:56]} 24. Nb4 {[%emt 0:03:06]} h6 {[%emt 0:04:03]} 25. Qf4 {[%emt 0:08:38]} a5 {[%emt 0:07:43]} 26. Nd3 Rc4 {[%emt 0:05:16] Weighted Error Value: White=0.10 (very precise) /Black=0.12 (very precise)} 1/2-1/2